bitfinex-derivatives/quotes_BNBF0:USTF0_20250709
["timestamp","ask_amount","ask_price","bid_price","bid_amount"]
[1752094626028,3.34963873,668.04,667.3,1.55213986]
[1752094626226,3.34963873,668.08,667.31,1.55213986]
[1752094626427,3.34963873,668.08,667.32,1.55213986]
[1752094626629,3.34963873,668.08,667.33,1.55213986]
[1752094626830,3.34963873,668.08,667.34,1.55213986]
[1752094627027,3.34963873,668.08,667.35,1.55213986]
[1752094627230,3.34963873,668.07,667.36,1.55213986]
[1752094627531,3.34963873,668.07,667.37,1.55213986]
[1752094627831,3.34963873,668.07,667.38,1.55213986]
[1752094628027,3.34963873,668.07,667.39,1.55213986]
[1752094628229,3.34963873,668.07,667.4,1.55213986]
[1752094628428,3.34963873,668.07,667.41,1.55213986]
[1752094628626,3.34963873,668.07,667.42,1.55213986]
[1752094628828,3.34963873,668.07,667.43,1.55213986]
[1752094629028,3.34963873,668.07,667.4,2.373]
[1752094629332,3.34963873,668.07,667.41,1.55250196]
[1752094629532,3.34963873,668.09,667.42,1.55250196]
[1752094629732,3.34963873,668.13,667.43,1.55250196]
[1752094629930,3.34963873,668.13,667.44,1.55250196]
[1752094630132,3.34963873,668.13,667.45,1.55250196]
[1752094630330,3.34963873,668.13,667.46,1.55250196]
[1752094630531,3.34963873,668.13,667.47,1.55250196]
[1752094630730,3.34963873,668.13,667.48,1.55250196]
[1752094630935,3.34963873,668.13,667.4,2.373]
[1752094631133,7.81582371,669.06,667.41,1.55260131]
[1752094631134,3.34963873,668.12,667.41,1.55260131]
[1752094631333,3.34963873,668.12,667.42,1.55260131]
[1752094631533,3.34963873,668.12,667.43,1.55260131]
[1752094631833,3.34963873,668.12,667.44,1.55260131]
[1752094632037,3.34963873,668.12,667.45,1.55260131]
[1752094632237,3.34963873,668.12,667.46,1.55260131]
[1752094632439,3.34963873,668.12,667.47,1.55260131]
[1752094632738,3.34963873,668.12,667.48,1.55260131]
[1752094632938,3.34963873,668.12,667.4,2.373]
[1752094633134,3.34963873,668.12,667.41,1.55270703]
[1752094633338,3.34963873,668.12,667.42,1.55270703]
[1752094633538,3.34963873,668.12,667.43,1.55270703]
[1752094633735,3.34963873,668.12,667.44,1.55270703]
[1752094634038,3.34963873,668.12,667.45,1.55270703]
[1752094634234,3.34963873,668.12,667.46,1.55270703]
[1752094634438,3.34963873,668.12,667.47,1.55270703]
[1752094634634,3.34963873,668.12,667.48,1.55270703]
[1752094634841,3.34963873,668.12,667.4,2.373]
[1752094635040,3.34963873,668.12,667.41,1.55282808]
[1752094635240,3.34963873,668.08,667.42,1.55282808]
[1752094635436,3.34963873,668.08,667.43,1.55282808]
[1752094635640,3.34963873,668.08,667.44,1.55282808]
[1752094635840,3.34963873,668.07,667.45,1.55282808]
[1752094636037,3.34963873,668.07,667.46,1.55282808]
[1752094636341,3.34963873,668.07,667.47,1.55282808]
[1752094636536,3.34963873,668.07,667.4,2.373]
[1752094636740,3.34963873,668.07,667.41,1.55297817]
[1752094636943,3.34963873,668.07,667.42,1.55297817]
[1752094637139,3.34963873,668.07,667.43,1.55297817]
[1752094637341,3.34963873,668.07,667.44,1.55297817]
[1752094637541,3.34963873,668.07,667.45,1.55297817]
[1752094637741,3.34963873,668.07,667.46,1.55297817]
[1752094637941,3.34963873,668.07,667.47,1.55297817]
[1752094638138,3.34963873,668.07,667.48,1.55297817]
[1752094638339,3.34963873,668.07,667.4,2.373]
[1752094638539,3.34963873,668.07,667.41,1.55312855]
[1752094638737,3.34963873,668.07,667.42,1.55312855]
[1752094639038,3.34963873,668.06,667.43,1.55312855]
[1752094639239,3.34963873,668.06,667.44,1.55312855]
[1752094639443,3.34963873,668.06,667.4,2.373]
[1752094639444,3.34963873,668.06,667.45,1.55312855]
[1752094639643,3.34963873,668.06,667.4,2.373]
[1752094639644,3.34963873,668.05,667.46,1.55312855]
[1752094639841,3.34963873,668.05,667.47,1.55312855]
[1752094640044,3.34963873,668.05,667.4,2.373]
[1752094640345,3.34963873,668.04,667.41,1.55325838]
[1752094640545,3.34963873,668.04,667.42,1.55325838]
[1752094640740,3.34963873,668.04,667.43,1.55325838]
[1752094640944,3.34963873,668.04,667.44,1.55325838]
[1752094641244,3.34963873,668.04,667.45,1.55325838]
[1752094641443,3.34963873,668.04,667.46,1.55325838]
[1752094641642,3.34963873,668.04,667.47,1.55325838]
[1752094641845,3.34963873,668.04,667.4,2.373]
[1752094642042,3.34963873,668.04,667.41,1.55334794]
[1752094642245,3.34963873,668.04,667.42,1.55334794]
[1752094642542,3.34963873,668.03,667.43,1.55334794]
[1752094642746,3.34963873,668.03,667.44,1.55334794]
[1752094643041,3.34963873,668.03,667.45,1.55334794]
[1752094643342,3.34963873,668.03,667.46,1.55334794]
[1752094643545,3.34963873,668.03,667.47,1.55334794]
[1752094643746,3.34963873,668.03,667.4,2.373]
[1752094643946,3.34963873,668.03,667.41,1.55350435]
[1752094644243,3.34963873,668.03,667.42,1.55350435]
[1752094644541,5.58273122,668.57,667.43,1.55350435]
[1752094644542,3.34963873,668.11,667.43,1.55350435]
[1752094644848,3.34963873,668.11,667.44,1.55350435]
[1752094645042,3.34963873,668.11,667.45,1.55350435]
[1752094645242,3.34963873,668.11,667.46,1.55350435]
[1752094645546,3.34963873,668.11,667.47,1.55350435]
[1752094645845,3.34963873,668.11,667.4,2.373]
[1752094646046,3.34963873,668.11,667.41,1.55356482]
[1752094646240,3.34963873,668.11,667.42,1.55356482]
[1752094646445,3.34963873,668.11,667.43,1.55356482]
[1752094646644,3.34963873,668.11,667.44,1.55356482]
[1752094646847,3.34963873,668.11,667.45,1.55356482]
[1752094647143,3.34963873,668.11,667.46,1.55356482]
[1752094647342,3.34963873,668.11,667.47,1.55356482]
[1752094647545,3.34963873,668.11,667.18,1.67825345]
[1752094647744,3.34963873,668.11,667.19,1.553614]
[1752094647946,3.34963873,668.11,667.2,1.553614]
[1752094648243,3.34963873,668.11,667.21,1.553614]
[1752094648547,3.34963873,668.1,667.22,1.553614]
[1752094648747,3.34963873,668.1,667.23,1.553614]
[1752094648945,3.34963873,668.05,667.24,1.553614]
[1752094649143,3.34963873,668.05,667.25,1.553614]
[1752094649343,3.34963873,668.04,667.26,1.553614]
[1752094649550,3.34963873,668.05,667.27,1.553614]
[1752094649754,3.34963873,668.02,667.28,1.553614]
[1752094649949,3.34963873,668.02,667.29,1.553614]
[1752094650149,3.34963873,668.02,667.3,1.553614]
[1752094650454,3.34963873,668.02,667.31,3.393614]
[1752094650755,3.34963873,668.02,667.32,1.553614]
[1752094650952,3.34963873,668.02,667.33,1.553614]
[1752094651150,3.34963873,668.01,667.34,1.553614]
[1752094651348,3.34963873,668.01,667.35,1.553614]
[1752094651548,3.34963873,668.01,667.36,1.553614]
[1752094651853,3.34963873,668.01,667.37,1.553614]
[1752094652050,3.34963873,668.01,667.31,1.84]
[1752094652350,3.34963873,668.01,667.32,1.55374705]
[1752094652549,3.34963873,668.01,667.33,1.55374705]
[1752094652749,3.34963873,668.01,667.34,1.55374705]
[1752094652950,3.34963873,668.01,667.35,1.55374705]
[1752094653250,3.34963873,667.88,667.31,1.84]
[1752094653455,3.34963873,667.88,667.32,1.55361045]
[1752094653655,3.34963873,667.87,667.31,1.84]
[1752094653853,3.34963873,667.87,667.32,1.55361057]
[1752094654053,3.34963873,667.87,667.31,1.84]
[1752094654256,3.34963873,667.88,667.32,1.5536272]
[1752094654453,3.34963873,667.89,667.31,1.84]
[1752094654652,3.34963873,667.86,667.31,1.84]
[1752094655257,3.34963873,667.91,667.31,1.84]
[1752094656358,3.34963873,667.92,667.31,1.84]
[1752094658258,3.34963873,667.93,667.31,1.84]
[1752094659557,3.34963873,667.96,667.32,1.55249673]
[1752094659758,3.34963873,668.03,667.33,1.55249673]
[1752094659955,3.34963873,668.03,667.34,1.55249673]
[1752094660158,3.34963873,668.03,667.31,1.84]
[1752094660357,3.34963873,668.03,667.32,1.55246185]
[1752094660561,3.34963873,668.03,667.33,1.55246185]
[1752094660861,3.34963873,668.03,667.34,1.55246185]
[1752094661059,3.34963873,668.03,667.31,1.84]
[1752094661257,3.34963873,668.03,667.32,1.55242798]
[1752094661461,3.34963873,668.03,667.33,1.55242798]
[1752094661758,3.34963873,668.03,667.34,1.55242798]
[1752094662058,3.34963873,668.03,667.35,1.55242798]
[1752094662361,3.34963873,668.03,667.31,1.84]
[1752094662662,3.34963873,668.05,667.32,1.55239403]
[1752094662961,3.34963873,668.05,667.33,1.55239403]
[1752094663157,3.34963873,668.05,667.34,1.55239403]
[1752094663359,3.34963873,668.06,667.35,1.55239403]
[1752094663557,3.34963873,668.06,667.05,1.67825345]
[1752094663863,3.34963873,668.06,667.06,1.55236326]
[1752094664158,3.34963873,668.06,667.07,1.55236326]
[1752094664358,11.1654624,669.57,667.05,1.67825345]
[1752094664359,3.34963873,668.07,667.08,1.55236326]
[1752094664556,3.34963873,668.07,667.09,1.55236326]
[1752094664756,3.34963873,668.07,667.1,1.55236326]
[1752094664956,3.34963873,668.07,667.11,1.55236326]
[1752094665161,3.34963873,668.05,667.12,1.55236326]
[1752094665361,3.34963873,668.05,667.13,1.55236326]
[1752094665559,3.34963873,668.25,667.14,1.55236326]
[1752094665763,3.34963873,668.25,667.15,1.55236326]
[1752094666063,3.34963873,668.17,667.16,3.84336326]
[1752094666262,3.34963873,668.17,667.17,1.55236326]
[1752094666463,3.34963873,668.17,667.18,1.55236326]
[1752094666664,3.34963873,668.17,667.19,1.55236326]
[1752094666964,3.34963873,668.17,667.16,2.291]
[1752094667165,3.34963873,667.95,667.16,2.291]
[1752094667364,3.34963873,667.89,667.16,2.291]
[1752094667561,3.34963873,667.88,667.16,2.291]
[1752094668362,3.34963873,667.91,667.16,2.291]
[1752094669164,3.34963873,667.92,667.16,2.291]
[1752094669364,3.34963873,667.95,667.16,2.291]
[1752094669763,3.34963873,667.91,667.16,2.291]
[1752094670163,3.34963873,667.92,667.16,2.291]
[1752094670467,3.34963873,667.95,667.16,2.291]
[1752094671367,3.34963873,667.97,667.16,2.291]
[1752094672164,3.34963873,667.98,667.16,2.291]
[1752094672364,3.34963873,668.0,667.16,2.291]
[1752094672565,3.34963873,668.01,667.16,2.291]
[1752094673167,3.34963873,668.03,667.16,2.291]
[1752094673768,3.34963873,667.85,667.16,2.291]
[1752094674367,3.34963873,667.87,667.16,2.291]
[1752094674567,3.34963873,667.88,667.16,2.291]
[1752094674772,3.34963873,667.86,667.16,2.291]
[1752094675271,3.34963873,667.87,667.16,2.291]
[1752094675472,3.34963873,667.89,667.16,2.291]
[1752094675769,3.34963873,667.9,667.16,2.291]
[1752094676272,3.34963873,667.91,667.16,2.291]
[1752094677069,3.34963873,667.9,667.16,2.291]
[1752094677268,3.34963873,667.92,667.16,2.291]
[1752094678070,3.34963873,667.91,667.16,2.291]
[1752094678272,3.34963873,667.92,667.16,2.291]
[1752094679477,3.34963873,667.94,667.16,2.291]
[1752094679777,3.34963873,667.96,667.16,2.291]
[1752094680073,3.34963873,667.95,667.16,2.291]
[1752094680573,3.34963873,667.91,667.16,2.291]
[1752094681477,3.34963873,667.93,667.16,2.291]
[1752094682277,3.34963873,667.94,667.16,2.291]
[1752094682572,3.34963873,667.93,667.16,2.291]
[1752094683379,3.34963873,667.94,667.16,2.291]
[1752094684582,3.34963873,667.95,667.16,2.291]
[1752094685782,3.34963873,667.94,667.16,2.291]
[1752094686378,3.34963873,667.95,667.16,2.291]
[1752094687379,3.34963873,667.96,667.16,2.291]
[1752094687987,3.34963873,667.98,667.16,2.291]
[1752094689187,3.34963873,668.0,667.16,2.291]
[1752094690786,3.34963873,667.98,667.16,2.291]
[1752094691382,3.34963873,667.99,667.16,2.291]
[1752094696092,3.34963873,667.99,666.66,0.26077085]
[1752094696390,3.34963873,668.0,666.67,1.54223952]
[1752094696590,3.34963873,668.0,666.68,1.54223952]
[1752094696787,3.34963873,668.0,666.69,1.54223952]
[1752094696987,3.34963873,668.0,666.7,1.54223952]
[1752094697291,3.34963873,668.0,666.71,1.54223952]
[1752094697487,3.34963873,668.0,666.72,1.54223952]
[1752094697788,3.34963873,668.0,666.73,1.54223952]
[1752094697990,3.34963873,667.99,666.74,1.54223952]
[1752094698287,3.34963873,667.99,666.75,1.54223952]
[1752094698491,3.34963873,667.99,666.76,1.54223952]
[1752094698692,3.34963873,667.99,666.77,1.54223952]
[1752094698888,3.34963873,667.95,666.78,1.54223952]
[1752094699091,3.34963873,667.95,666.79,1.54223952]
[1752094699292,3.34963873,667.94,666.8,1.54223952]
[1752094699491,3.34963873,667.94,666.81,1.54223952]
[1752094699689,3.34963873,667.94,666.82,1.54223952]
[1752094699888,3.34963873,667.94,666.83,1.54223952]
[1752094700088,3.34963873,667.94,666.8,2.444]
[1752094700288,3.34963873,667.93,666.81,1.54257346]
[1752094700493,3.34963873,667.91,666.8,2.444]
[1752094700693,3.34963873,667.91,666.81,1.54276214]
[1752094700992,3.34963873,667.91,666.8,2.444]
[1752094701191,3.34963873,667.91,666.81,1.54276214]
[1752094701390,3.34963873,667.9,666.8,2.444]
[1752094701588,3.34963873,667.9,666.81,1.54291619]
[1752094701792,3.34963873,667.9,666.8,2.444]
[1752094701990,3.34963873,667.9,666.81,1.54291619]
[1752094702194,3.34963873,667.91,666.8,2.444]
[1752094702392,3.34963873,667.9,666.81,1.54309972]
[1752094702597,3.34963873,667.9,666.8,2.444]
[1752094702792,3.34963873,667.9,666.81,1.54309972]
[1752094703092,3.34963873,667.9,666.8,2.444]
[1752094703293,3.34963873,667.89,666.81,1.54309972]
[1752094703497,3.34963873,667.89,666.8,2.444]
[1752094703694,3.34963873,667.89,666.81,1.54331684]
[1752094703998,3.34963873,667.89,666.8,2.444]
[1752094704293,3.34963873,667.86,666.8,2.444]
[1752094704593,3.34963873,667.87,666.8,2.444]
[1752094704798,3.34963873,667.94,666.8,2.444]
[1752094705195,3.34963873,667.88,666.8,2.444]
[1752094705394,3.34963873,667.87,666.8,2.444]
[1752094705996,3.34963873,667.86,666.8,2.444]
[1752094706195,3.34963873,667.85,666.8,2.444]
[1752094706995,3.34963873,667.88,666.8,2.444]
[1752094707401,3.34963873,667.87,666.8,2.444]
[1752094708200,3.34963873,667.86,666.8,2.444]
[1752094708398,3.34963873,667.85,666.8,2.444]
[1752094708901,3.34963873,667.84,666.8,2.444]
[1752094709500,3.34963873,667.83,666.8,2.444]
[1752094709995,3.34963873,667.81,666.8,2.444]
[1752094710196,3.34963873,667.8,666.8,2.444]
[1752094710597,3.34963873,667.81,666.8,2.444]
[1752094711501,3.34963873,667.8,666.8,2.444]
[1752094712401,3.34963873,667.79,666.8,2.444]
[1752094714303,3.34963873,667.78,666.8,2.444]
[1752094714504,3.34963873,667.77,666.8,2.444]
[1752094714705,3.34963873,667.74,666.8,2.444]
[1752094715305,3.34963873,667.73,666.8,2.444]
[1752094716709,3.34963873,667.72,666.8,2.444]
[1752094716913,7.81582371,668.69,666.8,2.444]
[1752094716914,3.34963873,667.68,666.8,2.444]
[1752094717409,3.34963873,667.67,666.8,2.444]
[1752094718114,3.34963873,667.66,666.8,2.444]
[1752094718410,3.34963873,667.65,666.8,2.444]
[1752094718709,3.34963873,667.66,666.8,2.444]
[1752094719214,3.34963873,667.65,666.8,2.444]
[1752094720017,3.34963873,667.69,666.8,2.444]
[1752094720217,3.34963873,667.7,666.8,2.444]
[1752094720417,3.34963873,667.68,666.8,2.444]
[1752094720816,3.34963873,667.77,666.8,2.444]
[1752094721320,3.34963873,667.74,666.8,2.444]
[1752094722218,3.34963873,667.71,666.8,2.444]
[1752094723516,3.34963873,667.67,666.58,0.26083242]
[1752094723720,3.34963873,667.66,666.59,1.54958588]
[1752094723919,3.34963873,667.66,666.6,1.54958588]
[1752094724219,3.34963873,667.66,666.61,1.54958588]
[1752094724418,3.34963873,667.63,666.62,1.54958588]
[1752094724720,3.34963873,667.63,666.63,1.54958588]
[1752094724917,3.34963873,667.63,666.64,1.54958588]
[1752094725220,3.34963873,667.63,666.65,1.54958588]
[1752094725417,3.34963873,667.58,666.66,1.54958588]
[1752094725621,3.34963873,667.58,666.67,1.54958588]
[1752094725821,3.34963873,667.58,666.68,1.54958588]
[1752094726117,3.34963873,667.58,666.69,1.54958588]
[1752094726421,7.81582371,668.67,666.7,1.54958588]
[1752094726422,3.34963873,667.56,666.7,1.54958588]
[1752094726617,3.34963873,667.56,666.71,1.54958588]
[1752094726820,3.34963873,667.56,666.72,1.54958588]
[1752094727020,3.34963873,667.56,666.73,1.54958588]
[1752094727217,3.34963873,667.56,666.74,1.54958588]
[1752094727522,3.34963873,667.56,666.75,1.54958588]
[1752094727720,3.34963873,667.56,666.76,1.54958588]
[1752094727918,3.34963873,667.56,666.77,1.54958588]
[1752094728122,3.34963873,667.56,666.78,1.54958588]
[1752094728319,3.34963873,667.56,666.79,1.54958588]
[1752094728524,3.34963873,667.56,666.7,2.065]
[1752094728723,3.34963873,667.56,666.71,1.55310683]
[1752094728928,3.34963873,667.56,666.72,1.55310683]
[1752094729125,3.34963873,667.56,666.73,1.55310683]
[1752094729427,3.34963873,667.56,666.74,1.55310683]
[1752094729720,3.34963873,667.57,666.75,1.55310683]
[1752094729924,3.34963873,667.59,666.76,1.55310683]
[1752094730125,3.34963873,667.58,666.77,1.55310683]
[1752094730326,3.34963873,667.58,666.78,1.55310683]
[1752094730624,3.34963873,667.52,666.79,1.55310683]
[1752094730825,3.34963873,667.52,666.8,1.55310683]
[1752094731122,3.34963873,667.52,666.7,2.065]
[1752094731325,3.34963873,667.51,666.71,1.55328841]
[1752094731522,3.34963873,667.51,666.72,1.55328841]
[1752094731722,5.58273122,668.17,666.7,2.065]
[1752094731723,3.34963873,667.52,666.73,1.55328841]
[1752094731922,3.34963873,667.51,666.74,1.55328841]
[1752094732127,3.34963873,667.51,666.75,1.55328841]
[1752094732322,3.34963873,667.51,666.76,1.55328841]
[1752094732524,3.34963873,667.51,666.77,1.55328841]
[1752094732822,3.34963873,667.59,666.78,1.55328841]
[1752094733022,3.34963873,667.59,666.79,1.55328841]
[1752094733226,3.34963873,667.58,666.8,1.55328841]
[1752094733424,3.34963873,667.58,666.81,1.55328841]
[1752094733629,3.34963873,667.58,666.7,2.065]
[1752094733827,3.34963873,667.58,666.71,1.55344355]
[1752094734123,3.34963873,667.58,666.72,1.55344355]
[1752094734322,3.34963873,667.59,666.73,1.55344355]
[1752094734523,3.34963873,667.59,666.74,1.55344355]
[1752094734727,3.34963873,667.59,666.75,1.55344355]
[1752094734927,3.34963873,667.59,666.76,1.55344355]
[1752094735127,3.34963873,667.59,666.77,1.55344355]
[1752094735423,3.34963873,667.59,666.78,1.55344355]
[1752094735627,3.34963873,667.59,666.79,1.55344355]
[1752094735824,3.34963873,667.59,666.8,1.55344355]
[1752094736029,3.34963873,667.59,666.81,1.55344355]
[1752094736228,3.34963873,667.59,666.82,1.55370961]
[1752094736427,3.34963873,667.58,666.7,2.065]
[1752094736628,3.34963873,667.58,666.71,1.55371538]
[1752094736824,3.34963873,667.58,666.72,1.55371538]
[1752094737028,3.34963873,667.61,666.73,1.55371538]
[1752094737227,3.34963873,667.6,666.74,1.55371538]
[1752094737432,3.34963873,667.61,666.75,1.55371538]
[1752094737728,3.34963873,667.61,666.76,1.55371538]
[1752094737929,3.34963873,667.61,666.77,1.55371538]
[1752094738127,3.34963873,667.61,666.78,1.55371538]
[1752094738431,3.34963873,667.6,666.79,1.55371538]
[1752094738727,3.34963873,667.6,666.8,1.55371538]
[1752094738930,3.34963873,667.6,666.81,1.55371538]
[1752094739129,3.34963873,667.59,666.82,1.55371538]
[1752094739328,3.34963873,667.59,666.83,1.55371538]
[1752094739531,3.34963873,667.58,666.84,1.55371538]
[1752094739727,3.34963873,667.48,666.85,1.55371538]
[1752094739927,3.34963873,667.48,666.7,2.065]
[1752094740126,3.34963873,667.48,666.71,1.55404312]
[1752094740430,3.34963873,667.47,666.72,1.55404312]
[1752094740630,3.34963873,667.47,666.73,1.55404312]
[1752094740927,3.34963873,667.47,666.74,1.55404312]
[1752094741132,3.34963873,667.47,666.75,1.55404312]
[1752094741428,3.34963873,667.46,666.76,1.55404312]
[1752094741628,3.34963873,667.46,666.77,1.55404312]
[1752094741828,3.34963873,667.46,666.78,1.55404312]
[1752094742029,3.34963873,667.46,666.79,1.55404312]
[1752094742233,3.34963873,667.46,666.8,1.55404312]
[1752094742529,3.34963873,667.46,666.81,1.55404312]
[1752094742733,3.34963873,667.48,666.82,1.55404312]
[1752094743032,3.34963873,667.48,666.83,1.55404312]
[1752094743232,3.34963873,667.48,666.7,2.065]
[1752094743532,3.34963873,667.47,666.71,1.55424729]
[1752094743732,3.34963873,667.46,666.72,1.55424729]
[1752094743930,3.34963873,667.46,666.73,1.55424729]
[1752094744133,3.34963873,667.46,666.74,1.55424729]
[1752094744328,3.34963873,667.44,666.75,1.55424729]
[1752094744529,3.34963873,667.43,666.76,1.55424729]
[1752094744729,3.34963873,667.45,666.77,1.55424729]
[1752094744929,3.34963873,667.45,666.78,1.55424729]
[1752094745135,3.34963873,667.44,666.79,1.55424729]
[1752094745334,3.34963873,667.44,666.8,1.55424729]
[1752094745633,3.34963873,667.44,666.81,1.55424729]
[1752094745833,3.34963873,667.44,666.82,1.55424729]
[1752094746133,3.34963873,667.44,666.83,1.55424729]
[1752094746334,3.34963873,667.43,666.7,2.065]
[1752094746630,3.34963873,667.43,666.71,1.55448887]
[1752094746833,3.34963873,667.43,666.72,1.55448887]
[1752094747129,3.34963873,667.43,666.73,1.55448887]
[1752094747333,3.34963873,667.43,666.74,1.55448887]
[1752094747530,3.34963873,667.43,666.75,1.55448887]
[1752094747730,3.34963873,667.43,666.76,1.55448887]
[1752094748034,3.34963873,667.43,666.77,1.55448887]
[1752094748333,3.34963873,667.43,666.78,1.55448887]
[1752094748531,3.34963873,667.43,666.79,1.55448887]
[1752094748831,3.34963873,667.43,666.8,1.55448887]
[1752094749034,3.34963873,667.42,666.81,1.55448887]
[1752094749329,3.34963873,667.42,666.82,1.55448887]
[1752094749529,3.34963873,667.4,666.83,1.55448887]
[1752094749734,3.34963873,667.42,666.84,1.55448887]
[1752094749931,3.34963873,667.41,666.7,2.065]
[1752094750132,3.34963873,667.41,666.71,1.55478435]
[1752094750434,3.34963873,667.41,666.72,1.55478435]
[1752094750632,3.34963873,667.41,666.73,1.55478435]
[1752094750834,3.34963873,667.41,666.74,1.55478435]
[1752094751037,3.34963873,667.42,666.75,1.55478435]
[1752094751334,3.34963873,667.42,666.76,1.55478435]
[1752094751534,3.34963873,667.42,666.77,1.55478435]
[1752094751737,3.34963873,667.45,666.78,1.55478435]
[1752094752036,3.34963873,667.49,666.79,1.55478435]
[1752094752232,3.34963873,667.49,666.8,1.55478435]
[1752094752434,3.34963873,667.49,666.81,1.55478435]
[1752094752633,3.34963873,667.48,666.82,1.55478435]
[1752094752838,3.34963873,667.47,666.83,1.55478435]
[1752094753034,3.34963873,667.47,666.7,2.065]
[1752094753237,3.34963873,667.47,666.71,1.55506618]
[1752094753433,3.34963873,667.47,666.72,1.55506618]
[1752094753637,3.34963873,667.47,666.73,1.55506618]
[1752094753934,3.34963873,667.47,666.74,1.55506618]
[1752094754138,3.34963873,667.47,666.75,1.55506618]
[1752094754335,3.34963873,667.47,666.76,1.55506618]
[1752094754535,5.58273122,668.13,666.77,1.55506618]
[1752094754536,3.34963873,667.46,666.77,1.55506618]
[1752094754737,3.34963873,667.46,666.7,2.065]
[1752094754738,3.34963873,667.47,666.78,1.55506618]
[1752094754943,3.34963873,667.47,666.79,1.55506618]
[1752094755141,3.34963873,667.47,666.8,1.55506618]
[1752094755341,3.34963873,667.47,666.81,1.55506618]
[1752094755540,3.34963873,667.47,666.82,1.55506618]
[1752094755738,3.34963873,667.47,666.83,1.55506618]
[1752094755942,3.34963873,667.47,666.84,1.55506618]
[1752094756240,3.34963873,667.47,666.7,2.065]
[1752094756438,3.34963873,667.47,666.71,1.55550544]
[1752094756641,3.34963873,667.47,666.72,1.55550544]
[1752094756839,3.34963873,667.47,666.73,1.55550544]
[1752094757042,3.34963873,667.47,666.74,1.55550544]
[1752094757242,3.34963873,667.47,666.75,1.55550544]
[1752094757543,3.34963873,667.47,666.76,1.55550544]
[1752094757840,3.34963873,667.47,666.77,1.55550544]
[1752094758037,3.34963873,667.47,666.78,1.55550544]
[1752094758239,3.34963873,667.47,666.79,1.55550544]
[1752094758542,3.34963873,667.47,666.8,1.55550544]
[1752094758842,3.34963873,667.47,666.81,1.55550544]
[1752094759142,3.34963873,667.47,666.82,1.55550544]
[1752094759340,3.34963873,667.47,666.83,1.55550544]
[1752094759540,3.34963873,667.46,666.84,1.55550544]
[1752094759742,3.34963873,667.47,666.85,1.55550544]
[1752094759938,3.34963873,667.49,666.86,1.55550544]
[1752094760142,3.34963873,667.49,666.87,1.55550544]
[1752094760343,3.34963873,667.49,666.88,1.55550544]
[1752094760538,3.34963873,667.49,666.7,2.065]
[1752094760744,3.34963873,667.48,666.71,1.5562173]
[1752094761038,3.34963873,667.48,666.72,1.5562173]
[1752094761243,3.34963873,667.48,666.73,1.5562173]
[1752094761441,3.34963873,667.48,666.74,1.5562173]
[1752094761642,3.34963873,667.46,666.75,1.5562173]
[1752094761944,3.34963873,667.42,666.76,1.5562173]
[1752094762243,3.34963873,667.42,666.77,1.5562173]
[1752094762440,3.34963873,667.42,666.78,1.5562173]
[1752094762645,3.34963873,667.42,666.79,1.5562173]
[1752094762845,3.34963873,667.42,666.8,1.5562173]
[1752094763040,3.34963873,667.42,666.81,1.5562173]
[1752094763241,3.34963873,667.42,666.82,1.5562173]
[1752094763444,3.34963873,667.41,666.83,1.5562173]
[1752094763640,3.34963873,667.41,666.84,1.5562173]
[1752094763842,3.34963873,667.43,666.85,1.5562173]
[1752094764045,3.34963873,667.43,666.86,1.5562173]
[1752094764245,3.34963873,667.43,666.87,1.5562173]
[1752094764545,3.34963873,667.43,666.88,1.5562173]
[1752094764744,3.34963873,667.43,666.89,1.5562173]
[1752094764944,3.34963873,667.43,666.9,1.5562173]
[1752094765143,3.34963873,667.43,666.7,2.065]
[1752094765347,3.34963873,667.43,666.71,1.55701891]
[1752094765555,3.34963873,667.43,666.72,1.55701891]
[1752094765742,3.34963873,667.43,666.73,1.55701891]
[1752094765947,3.34963873,667.43,666.74,1.55701891]
[1752094766142,3.34963873,667.43,666.75,1.55701891]
[1752094766346,3.34963873,667.43,666.76,1.55701891]
[1752094766544,3.34963873,667.43,666.7,2.065]
[1752094766545,3.34963873,667.43,666.77,1.55701891]
[1752094766843,3.34963873,667.43,666.78,1.55701891]
[1752094767047,3.34963873,667.43,666.79,1.55701891]
[1752094767244,3.34963873,667.43,666.8,1.55701891]
[1752094767447,3.34963873,667.43,666.81,1.55701891]
[1752094767748,3.34963873,667.44,666.82,1.55701891]
[1752094767947,3.34963873,667.44,666.83,1.55701891]
[1752094768143,3.34963873,667.44,666.84,1.55701891]
[1752094768342,3.34963873,667.43,666.85,1.55701891]
[1752094768550,3.34963873,667.43,666.86,1.55701891]
[1752094768748,3.34963873,667.43,666.87,1.55701891]
[1752094768947,3.34963873,667.43,666.88,1.55701891]
[1752094769243,3.34963873,667.43,666.89,1.55701891]
[1752094769444,3.34963873,667.41,666.9,1.55701891]
[1752094769649,3.34963873,667.43,666.91,1.5570365]